Cogmind - Beta 11.1 @@@ ROGUE MODE // 2022.09.17 @ 15:26:08 Player: DuckBoy Result: Destroyed self via exploding Power Conduit Performance ------------- Evolutions (3) 1500 Regions Visited (8) 1600 Robots Destroyed (60) 300 Value Destroyed (1828) 1828 Prototype IDs (7) 140 Alien Tech Used (0) 0 Bonus (220) 220 TOTAL SCORE: 5588 Bonus ------- Aligned with FarCom 300 Friendly Fire -80 Cogmind --------- Core Integrity 0/700 Matter 26/300 Energy 90/100 System Corruption 12% Temperature Cool (24) Movement Core (100) Ox1 Location -7/Factory Parts ------- > --- POWER (1) -------- (None) > --- PROPULSION (3) --- (None) > --- UTILITY (7) ------ Improved Signal Interpreter > --- WEAPON (2) ------- Power Maul Spear > --- INVENTORY (5) ---- Weight Redist. System Hacking Suite System Restoration Module Pulse Rifle Minigun Peak State ------------ > --- POWER ------------ Micro Nuclear Core > --- PROPULSION ------- Aluminum Leg Titanium Leg Titanium Leg > --- UTILITY ---------- Improved Cooling System Large Storage Unit Improved Signal Interpreter Improved Terrain Scanner Improved Light Armor Plating Corruption Screen Corruption Screen > --- WEAPON ----------- Particle Cannon Enhanced Autogun > --- INVENTORY -------- Light Ion Engine Improved Heat Sink Weight Redist. System Trap Scanner Improved Light Armor Plating Ion Cannon Assault Rifle Gauss Rifle Advanced Assault Cannon [Rating: 41] Favorites ----------- Power Light Ion Engine Engine Light Ion Engine Power Core Micro Nuclear Core Propulsion Wheel Treads Advanced Treads Leg Titanium Leg Wheel Wheel Hover Unit Improved Gravmag System Utility Improved Signal Interpreter Device Improved Terrain Scanner Storage Large Storage Unit Processor Improved Signal Interpreter Hackware System Shield Protection Improved Light Armor Plating Weapon Light Assault Rifle Energy Gun Particle Gun Energy Cannon Particle Cannon Ballistic Gun Light Assault Rifle Ballistic Cannon Advanced Assault Cannon Launcher Mini Grenade Launcher Special Weapon Mining Laser Impact Weapon Power Maul Slashing Weapon Great Axe Piercing Weapon Spear Build | -11 -10 -10 -10 -9 -8 -7 -7 -7 ------- Run | Scr Mat Min Exi Min Mat Fac Was Fac Slots Evolved 6 | . . . . . 4 2 . . Power . | . . . . . . . . . Propulsion 1 | . . . . . 1 . . . Utility 5 | . . . . . 3 2 . . Weapon . | . . . . . . . . . Parts Attached 89 | 7 1 . 4 6 30 6 6 29 Power 12 | 1 . . . 1 5 . 1 4 Engine 9 | 1 . . . 1 3 . 1 3 Core 3 | . . . . . 2 . . 1 Reactor . | . . . . . . . . . Propulsion 19 | 2 . . . 3 9 . . 5 Treads 1 | . . . . . . . . 1 Leg 9 | . . . . . 9 . . . Wheel 5 | 2 . . . 3 . . . . Hover 4 | . . . . . . . . 4 Flight . | . . . . . . . . . Utility 30 | 2 . . . . 10 3 4 11 Device 11 | 2 . . . . 5 . 1 3 Storage 6 | . . . . . 2 2 . 2 Processor 6 | . . . . . 2 . 2 2 Hackware 1 | . . . . . . . . 1 Protection 6 | . . . . . 1 1 1 3 Artifact . | . . . . . . . . . Weapon 28 | 2 1 . 4 2 6 3 1 9 Energy Gun 5 | 1 . . . . 2 1 . 1 Energy Cannon 4 | . . . 3 . 1 . . . Ballistic Gun 7 | 1 . . . 1 2 2 . 1 Ballistic Cannon 3 | . . . . . . . 1 2 Launcher 5 | . 1 . 1 . . . . 3 Special Weapon 1 | . . . . . 1 . . . Impact Weapon 1 | . . . . . . . . 1 Slashing Weapon 1 | . . . . 1 . . . . Piercing Weapon 1 | . . . . . . . . 1 Special Melee Weapon . | . . . . . . . . . Unidentified Prototypes 5 | . . . 2 . 1 1 1 . Parts Lost 36 | . . . . 3 15 . 5 13 Power 5 | . . . . . 3 . 1 1 Propulsion 13 | . . . . 2 4 . 2 5 Utility 11 | . . . . . 4 . 2 5 Weapon 7 | . . . . 1 4 . . 2 Highest Loss Streak 10 | . . . . 2 10 . 5 4 To Critical Strikes 1 | . . . . . . . 1 . Average Slot Usage (%) 78 | . 100 100 99 99 72 87 27 67 Engine 6 | . 14 14 14 14 6 . . . Core 1 | . . . . . . 7 1 4 Leg 8 | . . . . . 24 23 5 . Wheel 8 | . 28 28 28 27 1 . . . Hover 3 | . . . . . . . . 11 Device 15 | . 28 28 28 28 9 15 3 11 Storage 2 | . . . . . 1 7 1 4 Processor 6 | . . . . . 7 7 8 11 Protection 4 | . . . . . 5 11 2 7 Energy Gun 2 | . 9 . . . 5 . . . Energy Cannon 3 | . . . 3 14 3 7 1 . Ballistic Gun 6 | . 14 14 10 7 7 6 1 1 Launcher 3 | . 4 14 13 . . . . 2 Impact Weapon 1 | . . . . . . . . 4 Naked Turns 143 | . . . . . 2 . 65 76 Heaviest Build 48 | 7 7 7 16 25 48 42 41 45 Greatest Support 50 | 20 20 20 20 26 50 44 44 29 Greatest Overweight (x) 4 | . . . . 2 3 . 1 4 Average Overweight (x) . | . . . . . . . . . Largest Inventory Capacity 15 | 5 5 5 5 5 15 15 15 15 Average Capacity 7 | 5 5 5 5 5 5 10 7 12 Most Carried 11 | 5 5 4 5 5 8 10 10 11 Average Carried 4 | 3 4 4 4 4 4 8 5 5 Final Capacity 15 | 5 5 5 5 5 8 15 5 5 Final Carried 10 | 5 4 4 5 4 8 10 5 5 Class Distribution -------------------- 68% | Mutant 13% | Skirmisher 10% | Scavenger-Mutant 6% | Scavenger-Assassin Dominant Class ---------------- Mutant | -10/Materials Mutant | -10/Mines Mutant | -10/Exiles Mutant | -9/Mines Mutant | -8/Materials Skirmisher | -7/Factory Mutant | -7/Waste Mutant | -7/Factory Resources | -11 -10 -10 -10 -9 -8 -7 -7 -7 ----------- Run | Scr Mat Min Exi Min Mat Fac Was Fac Matter Collected 1445 | 285 . 49 41 74 470 33 . 493 Remotely 167 | 44 . 49 . 74 . . . . Salvage Created 1948 | 194 . 68 . 193 986 37 . 470 Parts 103 | 17 . 4 . 14 51 2 . 15 Haulers Intercepted . | . . . . . . . . . Recyclers Shooed 2 | . . . . 2 . . . . Parts Field Recycled . | . . . . . . . . . Retrieved Matter . | . . . . . . . . . Parts Self-Destructed . | . . . . . . . . . Prevented . | . . . . . . . . . Kills | -11 -10 -10 -10 -9 -8 -7 -7 -7 ------- Run | Scr Mat Min Exi Min Mat Fac Was Fac Combat Hostiles Destroyed 37 | . . 2 . 6 18 . . 11 Melee 2 | . . . . . 1 . . 1 Guns 17 | . . . . 3 13 . . 1 Cannons 6 | . . . . 2 4 . . . AOE 10 | . . 2 . 1 . . . 7 Classes Destroyed 11 | 3 . 2 . 1 3 . . 2 Worker 6 | 1 . . . . 2 . . 3 Builder 1 | . . 1 . . . . . . Tunneler 5 | 5 . . . . . . . . Recycler 4 | 1 . . . 1 1 . . 1 Watcher 7 | . . . . . 4 1 . 2 Swarmer 8 | . . . . 4 4 . . . Grunt 17 | . . 2 . 2 10 . . 3 Brawler 1 | . . . . . . . . 1 Sentry 4 | . . . . . 3 . . 1 Hunter 4 | . . . . . 1 . . 3 Programmer 3 | . . . . . . . . 3 Best Kill Streak 6 | 3 . 3 . 4 6 1 . 4 Combat Bots Only 4 | . . 2 . 4 4 . . 4 Max Kills in Single Turn 3 | 1 . 2 . 1 1 1 . 3 Gunslinging . | . . . . . . . . . Exploded 3 | . . 2 . 1 . . . 3 Melee 1 | . . . . . 1 . . 1 Uniques/NPCs Destroyed . | . . . . . . . . . Combat | -11 -10 -10 -10 -9 -8 -7 -7 -7 -------- Run | Scr Mat Min Exi Min Mat Fac Was Fac Damage Taken 3770 | . . 81 . 236 1628 . 285 1540 Core 1114 | . . 9 . 14 367 . 249 475 Absorbed by Shields . | . . . . . . . . . Redirected to Shielding 51 | . . . . . . . . 51 Core Remaining (%) 74 | 100 . . . 90 33 . . . Volleys Fired 159 | 15 . 4 . 25 76 3 . 36 Largest 2 | 2 . 1 . 1 2 2 . 2 Hottest 133 | 60 . 30 . 120 133 93 . 68 Shots Fired 246 | 30 . 4 . 25 139 6 . 42 Gun 183 | 30 . . . 19 118 3 . 13 Cannon 40 | . . . . 5 20 3 . 12 Launcher 22 | . . 4 . 1 . . . 17 Special 1 | . . . . . 1 . . . Kinetic 117 | 15 . . . 19 62 3 . 18 Thermal 91 | 15 . . . 5 68 3 . . Explosive 22 | . . 4 . 1 . . . 17 Electromagnetic 16 | . . . . . 9 . . 7 Robot Hit Streak 18 | 15 . . . 4 18 1 . 10 Robot Miss Streak 8 | 3 . . . 2 8 3 . 4 Penetration Max . | . . . . . . . . . Secondary Targets 1 | . . . . . 1 . . . Max Gunslinging Chain 1 | . . . . . 1 . . . Shots Hit Robots 168 | 21 . . . 10 99 2 . 36 Core Hits 103 | 10 . 5 . 10 49 2 . 27 Critical Kills 2 | . . . . . 2 . . . Critical Parts Destroyed 3 | . . . . . . . . 3 Critical Strikes 6 | . . . . . 3 . . 3 Burn 1 | . . . . . 1 . . . Destroy 2 | . . . . . 2 . . . Smash 3 | . . . . . . . . 3 Melee Attacks 29 | . . . . . 9 . . 20 Impact 20 | . . . . . . . . 20 Slashing 9 | . . . . . 9 . . . Piercing . | . . . . . . . . . Sneak Attacks 2 | . . . . . . . . 2 Combat Hostiles . | . . . . . . . . . Follow-up Attacks . | . . . . . . . . . Damage Inflicted 5189 | 209 . 211 . 496 1977 38 . 2258 Guns 1617 | 209 . . . 79 1142 38 . 149 Cannons 827 | . . . . 191 554 . . 82 Explosions 1757 | . . 211 . 226 . . . 1320 Melee 950 | . . . . . 243 . . 707 Ramming 14 | . . . . . 14 . . . Kinetic 970 | 71 . . . 79 665 38 . 117 Thermal 1583 | 138 . . . 191 948 . . 306 Explosive 1451 | . . 211 . 226 . . . 1014 Electromagnetic 221 | . . . . . 107 . . 114 Impact 707 | . . . . . . . . 707 Slashing 243 | . . . . . 243 . . . Piercing . | . . . . . . . . . Highest Corruption 12 | . . . . . . . 8 12 Average Corruption 9 | . . . . . . . 8 9 Corruption Purged . | . . . . . . . . . Corruption Blocked 5 | . . . . . . . 5 . Effects 56 | . . . . . . . 1 55 Message Errors 13 | . . . . . . . . 13 Matter Fused 15 | . . . . . . . 1 14 Heat Flow Errors 10 | . . . . . . . . 10 Energy Discharges 7 | . . . . . . . . 7 Parts Rejected 1 | . . . . . . . . 1 Data Loss (minor) 6 | . . . . . . . . 6 Data Loss (major) 1 | . . . . . . . . 1 Misfires 1 | . . . . . . . . 1 Alerts 1 | . . . . . . . . 1 Weapon Failures 1 | . . . . . . . . 1 Overload Shots . | . . . . . . . . . Overflow Damage 415 | . . . . 38 9 . . 368 Projectiles 9 | . . . . . 9 . . . Explosions 127 | . . . . 38 . . . 89 Melee 279 | . . . . . . . . 279 Knockbacks 3 | . . . . . . . . 3 Impact 3 | . . . . . . . . 3 Kinetic . | . . . . . . . . . Secondary . | . . . . . . . . . Self-Inflicted Damage 327 | . . 29 . 48 . . . 250 Shots 5 | . . 1 . 1 . . . 3 Rammed . | . . . . . . . . . Targets Rammed 3 | . . . . . 3 . . . Kicked 3 | . . . . . 3 . . . Crushed . | . . . . . . . . . Highest Temperature 339 | 40 . 5 . 252 339 101 . 243 Average Temperature 68 | 23 . 3 . 113 64 58 . 99 Received Heat Transfer 591 | . . 30 . . 513 . . 48 Siege Activations . | . . . . . . . . . Robots Corrupted 1 | . . . . . . . . 1 Combat Hostiles 1 | . . . . . . . . 1 Parts Fried 4 | . . . . . . . . 4 Impact Corruptions 12 | . . . . . . . . 12 Robots Melted . | . . . . . . . . . Combat Hostiles . | . . . . . . . . . Parts Melted 5 | . . . . . 5 . . . Heat Transferred 3032 | 300 . . . 400 2182 . . 150 Parts Sabotaged . | . . . . . . . . . Parts Stolen . | . . . . . . . . . Parts Stripped . | . . . . . . . . . Power Chain Reactions 1 | . . . . . . . . 1 Missiles Intercepted . | . . . . . . . . . Alert | -11 -10 -10 -10 -9 -8 -7 -7 -7 ------- Run | Scr Mat Min Exi Min Mat Fac Was Fac Peak Influence 234 | 35 65 200 . 172 234 81 43 211 Initial 54 | . 22 25 . . . 54 28 21 Average 82 | 17 46 88 . 102 108 77 22 70 Maximum Alert Level 1 | . . 1 . . 1 . . 1 Low Security (%) 95 | 100 100 64 . 100 94 100 100 98 Level 1 4 | . . 35 . . 5 . . 1 Level 2 . | . . . . . . . . . Level 3 . | . . . . . . . . . Level 4 . | . . . . . . . . . Level 5 . | . . . . . . . . . High Security . | . . . . . . . . . Max Security . | . . . . . . . . . Squads Dispatched 11 | . 1 . . . 1 . . 9 Investigation 5 | . 1 . . . 1 . . 3 Extermination 3 | . . . . . . . . 3 Reinforcement 3 | . . . . . . . . 3 Assault . | . . . . . . . . . Garrison . | . . . . . . . . . Intercept . | . . . . . . . . . Searches Triggered . | . . . . . . . . . Construction Impeded 1 | . . . . . . . . 1 Haulers Reinforced . | . . . . . . . . . Active Scanning Responses . | . . . . . . . . . Cargo Convoy Interrupts 1 | . . . . . . . . 1 Stealth | -11 -10 -10 -10 -9 -8 -7 -7 -7 --------- Run | Scr Mat Min Exi Min Mat Fac Was Fac Distress Signals 4 | . . . . . 4 . . . Communications Jammed . | . . . . . . . . . Distress Signals . | . . . . . . . . . Times Spotted 74 | . 2 2 . 3 40 1 6 20 Peak Tracking Total 9 | . 1 2 . 3 9 1 6 3 Tactical Retreats 6 | . . . . . 5 . . 1 Traps | -11 -10 -10 -10 -9 -8 -7 -7 -7 ------- Run | Scr Mat Min Exi Min Mat Fac Was Fac Traps Triggered 7 | . 1 . . 1 1 1 . 3 Indirectly . | . . . . . . . . . Trap Hack Attempts . | . . . . . . . . . Triggered . | . . . . . . . . . Disarmed . | . . . . . . . . . Reprogrammed . | . . . . . . . . . Reused . | . . . . . . . . . Traps Extracted . | . . . . . . . . . Installed . | . . . . . . . . . Triggered 2 | . . . . . . . . 2 Machines | -11 -10 -10 -10 -9 -8 -7 -7 -7 ---------- Run | Scr Mat Min Exi Min Mat Fac Was Fac Machines Disabled 9 | . . 2 . . . . . 7 Max in Single Turn 3 | . . 2 . . . . . 3 Machines Sabotaged . | . . . . . . . . . Garrisons Compromised 1 | . . . . . . . . 1 Overloaded Fab Kills . | . . . . . . . . . Hacking | -11 -10 -10 -10 -9 -8 -7 -7 -7 --------- Run | Scr Mat Min Exi Min Mat Fac Was Fac Machines Accessed 23 | . 3 . 4 1 6 1 . 8 Terminals 13 | . 3 . . . 5 1 . 4 Fabricators 2 | . . . . . . . . 2 Repair Stations . | . . . . . . . . . Recycling Units . | . . . . . . . . . Scanalyzers . | . . . . . . . . . Garrison Access 3 | . . . . . 1 . . 2 Total Hacks 95 | . 13 . 49 1 17 1 . 14 Successful 71 | . 7 . 49 1 6 1 . 7 Failed 24 | . 6 . . . 11 . . 7 Catastrophic 5 | . 2 . . . 2 . . 1 Database Lockouts . | . . . . . . . . . Manual 37 | . 12 . 1 . 15 . . 9 Terminals 36 | . 13 . . . 15 1 . 7 Fabricators 5 | . . . . . . . . 5 Repair Stations . | . . . . . . . . . Recycling Units . | . . . . . . . . . Scanalyzers . | . . . . . . . . . Garrison Access 4 | . . . . . 2 . . 2 Terminal Hacks 59 | . 4 . 49 1 4 1 . . Record 49 | . . . 49 . . . . . Part Schematic 2 | . . . . . 2 . . . Prototype ID Bank 1 | . . . . . 1 . . . Open Door 1 | . . . . 1 . . . . Open DSF 1 | . . . . . . 1 . . Branch Access Points 2 | . 1 . . . 1 . . . Terminal Index 1 | . 1 . . . . . . . Scanalyzer Index 1 | . 1 . . . . . . . Recall Investigation 1 | . 1 . . . . . . . Fabricator Hacks 5 | . . . . . . . . 5 Load Schematic 2 | . . . . . . . . 2 Build 3 | . . . . . . . . 3 Repair Station Hacks . | . . . . . . . . . Recycling Unit Hacks . | . . . . . . . . . Scanalyzer . | . . . . . . . . . Garrison Access Hacks . | . . . . . . . . . Unauthorized Hacks 7 | . 3 . . . 2 . . 2 Terminals 6 | . 3 . . . 2 . . 1 Botnet 5 | . 2 . . . 2 . . 1 Operators 1 | . 1 . . . . . . . Fabricators . | . . . . . . . . . Repair Stations . | . . . . . . . . . Recycling Units . | . . . . . . . . . Scanalyzers . | . . . . . . . . . Garrison Access 1 | . . . . . . . . 1 Reprogram 1 | . . . . . . . . 1 Data Cores Recovered . | . . . . . . . . . Used . | . . . . . . . . . Hacking Detections 16 | . 3 . . . 6 . . 7 Full Trace Events 2 | . . . . . . . . 2 Feedback Events . | . . . . . . . . . Feedback Blocked . | . . . . . . . . . Robot Schematics Acquired . | . . . . . . . . . Robots Built . | . . . . . . . . . Authchips . | . . . . . . . . . Time . | . . . . . . . . . Total Robot Build Rating . | . . . . . . . . . Part Schematics Acquired 2 | . . . . . 2 . . . Parts Built 4 | . . . . . . . . 4 Authchips . | . . . . . . . . . Time 241 | . . . . . . . . 241 Total Part Build Rating 16 | . . . . . . . . 16 Parts Repaired . | . . . . . . . . . Time . | . . . . . . . . . Parts Recycled . | . . . . . . . . . Recycled Matter . | . . . . . . . . . Retrieved Matter . | . . . . . . . . . Retrieved Components . | . . . . . . . . . Parts Scanalyzed . | . . . . . . . . . Part Schematics Acquired . | . . . . . . . . . Parts Damaged . | . . . . . . . . . Bothacking | -11 -10 -10 -10 -9 -8 -7 -7 -7 ------------ Run | Scr Mat Min Exi Min Mat Fac Was Fac Used RIF Installer . | . . . . . . . . . Robots Hacked . | . . . . . . . . . Non-combat . | . . . . . . . . . Combat . | . . . . . . . . . Robot Hacks Applied . | . . . . . . . . . Relay Couplers Released . | . . . . . . . . . Fabnet Peak Effective % . | . . . . . . . . . Robots Rewired . | . . . . . . . . . Allies Hacked . | . . . . . . . . . Hacks Repelled . | . . . . . . . . . Allies | -11 -10 -10 -10 -9 -8 -7 -7 -7 -------- Run | Scr Mat Min Exi Min Mat Fac Was Fac Total Allies 3 | . . . . 3 . . . . Largest Group 3 | . . . . 3 2 . . . Highest-Rated Group 40 | . . . . 40 32 . . . Highest-Rated Ally 16 | . . . . 16 16 . . . Total Orders . | . . . . . . . . . Ally Attacks 5 | . . . . . 5 . . . Total Damage 63 | . . . . . 63 . . . Kills . | . . . . . . . . . Allies Corrupted . | . . . . . . . . . Allies Melted . | . . . . . . . . . Intel | -11 -10 -10 -10 -9 -8 -7 -7 -7 ------- Run | Scr Mat Min Exi Min Mat Fac Was Fac Robot Analysis Total . | . . . . . . . . . Derelict Logs Recovered 3 | . . . . 3 . . . . Drone Launches . | . . . . . . . . . Drone Recoveries . | . . . . . . . . . Exploration | -11 -10 -10 -10 -9 -8 -7 -7 -7 ------------- Run | Scr Mat Min Exi Min Mat Fac Was Fac Turns Passed 5206 | 168 304 254 488 502 1505 249 131 1605 Spaces Moved 4268 | 118 360 285 599 465 812 175 190 1264 Core 449 | 2 . . . . 2 . 170 275 Treads 131 | . . . . . . . . 131 Legs 950 | . . . . . 755 175 20 . Wheels 1880 | 116 360 285 599 465 55 . . . Hover 858 | . . . . . . . . 858 Flight . | . . . . . . . . . Fastest Speed 50 | 50 80 80 80 80 50 126 50 50 Average Speed 97 | 79 80 80 80 84 123 126 58 104 Slowest Speed 305 | 80 80 80 80 110 126 126 126 305 Overloaded Moves . | . . . . . . . . . Propulsion Burnouts . | . . . . . . . . . Robots Hopped . | . . . . . . . . . Cave-ins Triggered . | . . . . . . . . . Exploration Rate (%) 51 | 4 47 54 94 88 51 5 95 26 Regions Visited 8 Branch Regions 3 Pre-discovered Areas 4 | . . 1 1 2 . . . . Known Exits Taken 2 | . 1 . . . 1 . . . Unknown Exits Taken 4 | 1 . 1 1 1 . . . . Scrap Searched 1 | . . . . 1 . . . . Spaces Dug 4 | . . . . . . . . 4 Terrain Destroyed 126 | . . 32 . 12 . . . 82 Melee 4 | . . . . . . . . 4 Projectile . | . . . . . . . . . AOE 122 | . . 32 . 12 . . . 78 Terrain Rammed . | . . . . . . . . . Walls Destroyed . | . . . . . . . . . Machines Disabled . | . . . . . . . . . Actions | -11 -10 -10 -10 -9 -8 -7 -7 -7 --------- Run | Scr Mat Min Exi Min Mat Fac Was Fac Total 5027 | 164 377 306 608 551 1152 199 211 1459 Wait 399 | 16 12 18 . 49 203 7 8 86 Move 4262 | 117 359 284 598 464 812 175 189 1264 Hop . | . . . . . . . . . Pick Up 39 | 7 2 . 2 4 8 3 1 12 Fast Attach 54 | 7 . . 3 . 21 5 2 16 Attach 27 | . 1 . 1 3 4 1 4 13 Detach 10 | . . . . . 2 . 2 6 Swap 8 | . . . . 3 5 . . . Drop 38 | 2 3 . 4 3 10 5 5 6 Fire 159 | 15 . 4 . 25 76 3 . 36 Melee 29 | . . . . . 9 . . 20 Ram . | . . . . . . . . . Kick 2 | . . . . . 2 . . . Crush . | . . . . . . . . . Escape Stasis . | . . . . . . . . . Rewire . | . . . . . . . . . Trap . | . . . . . . . . . Miscellaneous . | . . . . . . . . . Route ------- -11/Scrapyard -10/Materials (discovered 3 exits: [*Mat] / *Min x2) -10/Mines (discovered 2 exits: [*Mat] / *Exi) -10/Exiles (discovered 2 exits: *Min x2) -9/Mines (discovered 2 exits: *Mat x2) -8/Materials (discovered 2 exits: *Fac x2) -7/Factory -7/Waste -7/Factory (discovered 1 exit: *Fac) History --------- Turn | Location | Event 9 | -11/Scrapyard | Discovered new exit (range 15) 169 | -11/Scrapyard | Entered Materials 218 | -10/Materials | Discovered new exit (range 8) 288 | -10/Materials | Discovered new exit (range 4) 318 | -10/Materials | Build established: Mutant 331 | -10/Materials | Identified exit to Mines 473 | -10/Materials | Entered Mines 488 | -10/Mines | Learned location of Storage (-7) 518 | -10/Mines | Discovered new exit (range 10) 723 | -10/Mines | Deemed a non-threat by the Exiles lab entrance 723 | -10/Mines | Discovered new exit (range 5) 727 | -10/Mines | Entered Exiles 740 | -10/Exiles | Discovered new exit (range 14) 748 | -10/Exiles | Met 8R-AWN 763 | -10/Exiles | Met EX-HEX 808 | -10/Exiles | Met EX-DEC 841 | -10/Exiles | Visited The Gauntlet 952 | -10/Exiles | Learned location of Zion (-7) 1016 | -10/Exiles | Met EX-BIN 1075 | -10/Exiles | Aligned with FarCom system 1076 | -10/Exiles | Given EX-Vault access code 1095 | -10/Exiles | Opened EX-Vault 1098 | -10/Exiles | Found Prototype Energy Cannon 1098 | -10/Exiles | Identified Firepult 1103 | -10/Exiles | Found Prototype Energy Cannon 1103 | -10/Exiles | Identified Gui. Plasma Cannon 1134 | -10/Exiles | Warned to stay clear of 0b10 Research branches 1205 | -10/Exiles | Discovered new exit (range 14) 1215 | -10/Exiles | Left Exiles lab with Gui. Plasma Cannon 1215 | -10/Exiles | Entered Mines 1306 | -9/Mines | Discovered new exit (range 13) 1383 | -9/Mines | Assisted by bots powering up and referring to "LRC-V3" 1441 | -9/Mines | Learned 2 Materials zone layouts 1470 | -9/Mines | Met a Derelict who couldn't figure out how to use a Trap Extractor 1575 | -9/Mines | Discovered new exit (range 12) 1717 | -9/Mines | Entered Materials 1717 | -8/Materials | Accompanied by 2 allies 1717 | -8/Materials | Evolved 4 slots: Propulsion x1, Utility x3 1777 | -8/Materials | Build established: Scavenger-Assassin 1882 | -8/Materials | Lost 10 parts (1p3n3u3w) 2032 | -8/Materials | Core integrity fell below 50% 2787 | -8/Materials | Discovered new exit (range 5) 2793 | -8/Materials | Identified exit to Factory 3097 | -8/Materials | Build established: Skirmisher 3212 | -8/Materials | Discovered exit to Factory (range 4) 3222 | -8/Materials | Entered Factory 3222 | -7/Factory | Evolved 2 slots: Utility x2 3236 | -7/Factory | Identified exit to DSF 3471 | -7/Factory | Sucked down chute 3471 | -7/Factory | Entered Waste 3482 | -7/Waste | Spotted C-40 Crusher 3486 | -7/Waste | EMP discharged 3488 | -7/Waste | Spotted C-40 Crusher 3500 | -7/Waste | Crushed by Compactor (1 part destroyed, 2 dropped) 3502 | -7/Waste | Crushed by Compactor (1 part destroyed, 2 dropped) 3503 | -7/Waste | Crushed by Compactor (1 part destroyed, 1 dropped) 3532 | -7/Waste | Crushed by Compactor (1 part destroyed, 1 dropped) 3535 | -7/Waste | Spotted C-40 Crusher 3544 | -7/Waste | Spotted C-40 Crusher 3563 | -7/Waste | Lost 5 parts (1p2n2u) 3564 | -7/Waste | Spotted C-40 Crusher 3566 | -7/Waste | Spotted C-40 Crusher 3586 | -7/Waste | EMP discharged 3596 | -7/Waste | Discovered new exit (range 11) 3602 | -7/Waste | Entered Factory 3777 | -7/Factory | Fabricated Imp. Gravmag System? 3816 | -7/Factory | Build established: Mutant 3869 | -7/Factory | Fabricated System Shield? 4372 | -7/Factory | System corruption reached 10% 4425 | -7/Factory | Core integrity fell below 50% 4433 | -7/Factory | Fabricated System Shield? 4614 | -7/Factory | Cargo convoy interrupted 4617 | -7/Factory | Discovered new exit (range 14) 4674 | -7/Factory | Identified exit to Factory 5198 | -7/Factory | Lost 4 parts (1n2u1w) 5207 | -7/Factory | Destroyed self via exploding Power Conduit Last Messages --------------- 05175_ System corrupted: Heat flow error (+166). 05175_ U-05 Engineer lays Concrete. 05184_ Connecting with Terminal... 05190_ System corrupted: Heat flow error (+247). 05197_ Acquired Spear. 05201_ P-60 Hacker suffers critical hit (Smash). 05201_ Destroyed Shock Rifle. 05201_ P-60 Hacker system corrupted by crushing effect. 05203_ Imp. Gravmag System destroyed. 05205_ Core Shielding destroyed. 05207_ Destroyed Gravmag System. 05207_ P-60 Hacker system corrupted by crushing effect. 05207_ Power Conduit explodes. [Achievement: Batter Up] 05207_ P-60 Hacker destroyed. 05207_ Power Conduit explodes. 05207_ Core Analyzer destroyed. 05207_ Destroyed Core Analyzer. 05207_ Imp. Heat Sink destroyed. 05207_ Destroyed Imp. Heat Sink. Map ----- +----------------------------------------------------+ | # !*! # """"""" #????????? | | ####### # #????????? | | #?????# #! ! #????????? | | #?????# #"############????????? | | ########+##?????# #??????????????? | | ???????# ######## #??????????????? | | ???????# """"""""" #??????????????? | | ???????# ###########! ##?????????????? | | ???????# #?????????# """"""""" "#?????????????? | | ???????# #?????????# "#?????????????? | | ########+##????????# "#?????????????? | | #??????### * T#?????????????? | | #????? "#?????????????? | | #???? "#?????????????? | | " "" #????? "#?????????????? | | " "" #???? x ##?????????????? | | "" """ +????" "x " #??????????????? | | "" """ #??? " " " #??????????????? | | "" """ #??? " " " #??????????????? | | #??? " " " #??????????????? | | #??" " " " ###????????????? | | #??" " " " #????????????? | | #??" " " " #????????????? | | #####+#####??" " " |=/ % " #????????????? | | ????# #???# " " " |=/ " ^#????????????? | | ????# #???# |= @ +????????????? | | ????# #???# #????????????? | | ????# #???# #????????????? | | ????# #???##############+#### #????????????? | | ##### ####??????????????????# #????????????? | | #??????????????????# #????????????? | | #??????????????????# #????????????? | | #??????????????????# #????????????? | | #??????????????????# #????????????? | | #??????????????????# #????????????? | | #??????????????????# #????????????? | | #??????????????????# #????????????? | | ## #??????????????????? #????????????? | | ?# #??????????????????? #????????????? | | ?# ?????????????????? ???????????????? | | ?# ?????????????????? ?????????????????? | | ?# ""?????????????????????????????????????? | | ?# """ ""??????????????????????????????????????? | | ?+ """ "???????????????????????????????????????? | | ?# "?? ????????????????????????????????????????? | | ?? ????????????????????????????????????????????? | | ?????????????????????????????????????????????????? | | ?????????????????????????????????????????????????? | | ?????????????????????????????????????????????????? | | ?????????????????????????????????????????????????? | +----------------------------------------------------+ Best States ------------- Heat Dissipation 58 Energy Generation 18 Energy Capacity 275 Matter Stores 300 Matter Capacity 300 Sight Range 18 Terrain Scan Range 16 Terrain Scan Density 10 Additional Mass Support 6 Corruption Block 16 Armor Coverage 300 Core Shielding 20 Evasion (%) 55 Core Analysis 6 Recoil Reduction 1 Item Schematics ----------------- System Shield | -8/Materials | Hacked Hacking Suite | -8/Materials | Hacked Robot Schematics ------------------ None Fabricated ------------ Imp. Gravmag System | x2 | -7/Factory | Preloaded System Shield | x1 | -7/Factory System Shield | x1 | -7/Factory Alien Tech Used ----------------- None Achievements -------------- Batter Up Challenges ------------ None Game ------ Seed DataIonBroadsword Manual? 0 Play Time 01:13:12 Cumulative 111.2 hours Start 2022.09.17 @ 14:09:57 End 2022.09.17 @ 15:26:08 Sessions 1 Manual Loads 0 Difficulty Rogue Special Mode None Game No. 83 Rogue 80 Adventurer 3 Explorer 0 Win Type - Total 1 Types 1/0/0/0/0/0/0/0/0 Lore% 50 Gallery% 50 Achievement% 46 Wizard Run 0 Options --------- ASCII 0 Keyboard 0 Movement Numpad Keybinds 0 Fullscreen 1 Font 18/SmallcapsGlow Map View 76x50 Tactical HUD 1 Map Filters NONE Filters NONE Steam 1 RUN: 60c08653-8a2b-4b00-8aaa-d5dfe84e83f8